[Event "Grandmaster Tournament Blitz"]
[Site "Biel/Bienne, Switzerland"]
[Date "2019.07.27"]
[Round "1.1"]
[White "Bogner, Sebastian"]
[Black "Shankland, Sam"]
[Result "0-1"]
[ECO "D12"]
[WhiteElo "2584"]
[BlackElo "2660"]
[PlyCount "68"]
[EventDate "2019.??.??"]
[EventType "blitz"]
[TimeControl "3+2"]
[WhiteClock "0:00:33"]
[BlackClock "0:01:39"]

1. Nf3 {[%emt 0:00:00]} d5 {[%emt 0:00:00]} 2. d4 {[%emt 0:00:00]} Nf6 {
[%emt 0:00:00]} 3. e3 {[%emt 0:00:00]} Bf5 {[%emt 0:00:00]} 4. c4 {[%emt 0:00:
00]} c6 {[%emt 0:00:00]} 5. Nc3 {[%emt 0:00:00]} e6 {[%emt 0:00:00]} 6. Bd3 {
[%emt 0:00:00]} Bxd3 {[%emt 0:00:00]} 7. Qxd3 {[%emt 0:00:00]} Bb4 {[%emt 0:00:
00]} 8. O-O {[%emt 0:00:00]} O-O {[%emt 0:00:00]} 9. Bd2 {[%emt 0:00:00]} Ba5 {
[%emt 0:00:00]} 10. a3 {[%emt 0:00:00]} Nbd7 {[%emt 0:00:00]} 11. b4 {[%emt 0:
00:00]} Bc7 {[%emt 0:00:00]} 12. Rfd1 {[%emt 0:00:00]} Nb6 {[%emt 0:00:00]} 13.
c5 {[%emt 0:00:00]} Nc4 {[%emt 0:00:00]} 14. e4 {[%emt 0:00:00]} Nb2 {[%emt 0:
00:00]} 15. Qc2 {[%emt 0:00:00]} Nxd1 {[%emt 0:00:00]} 16. Rxd1 {[%emt 0:00:00]
} Nxe4 {[%emt 0:00:00]} 17. Nxe4 {[%emt 0:00:00]} dxe4 {[%emt 0:00:00]} 18.
Qxe4 {[%emt 0:00:00]} Qd5 {[%emt 0:00:00]} 19. Qc2 {[%emt 0:00:00]} Rad8 {
[%emt 0:00:00]} 20. Re1 {[%emt 0:00:00]} Rfe8 {[%emt 0:00:00]} 21. Bc3 {
[%emt 0:00:00]} h6 {[%emt 0:00:00]} 22. a4 {[%emt 0:00:00]} a6 {[%emt 0:00:00]}
23. a5 {[%emt 0:00:00]} Qf5 {[%emt 0:00:00]} 24. Qe2 {[%emt 0:00:00]} Rd5 {
[%emt 0:00:00]} 25. g3 {[%emt 0:00:00]} Bd8 {[%emt 0:00:00]} 26. Kg2 {[%emt 0:
00:00]} Bf6 {[%emt 0:00:00]} 27. h3 {[%emt 0:00:00]} Red8 {[%emt 0:00:00]} 28.
Qe3 {[%emt 0:00:00]} h5 {[%emt 0:00:00]} 29. Re2 {[%emt 0:00:00]} g5 {[%emt 0:
00:00]} 30. Rd2 {[%emt 0:00:00]} g4 {[%emt 0:00:00]} 31. hxg4 {[%emt 0:00:03]}
hxg4 {[%emt 0:00:00]} 32. Nh4 {[%emt 0:00:16]} Bxh4 {[%emt 0:00:00]} 33. gxh4 {
[%emt 0:00:01]} e5 {[%emt 0:00:00]} 34. dxe5 {[%emt 0:00:23]} Qf3+ {[%emt 0:00:
00]} 0-1

[Event "Grandmaster Tournament Blitz"]
[Site "Biel/Bienne, Switzerland"]
[Date "2019.07.27"]
[Round "1.4"]
[White "Abdusattorov, Nodirbek"]
[Black "Maghsoodloo, Parham"]
[Result "1/2-1/2"]
[ECO "A85"]
[WhiteElo "2550"]
[BlackElo "2719"]
[PlyCount "142"]
[EventDate "2019.??.??"]
[EventType "blitz"]
[TimeControl "3+2"]
[WhiteClock "0:00:18"]
[BlackClock "0:00:07"]

1. d4 {[%emt 0:00:00]} f5 {[%emt 0:00:00]} 2. c4 {[%emt 0:00:00]} Nf6 {[%emt 0:
00:00]} 3. g3 {[%emt 0:00:00]} g6 {[%emt 0:00:00]} 4. Bg2 {[%emt 0:00:00]} Bg7
{[%emt 0:00:00]} 5. Nc3 {[%emt 0:00:00]} O-O {[%emt 0:00:00]} 6. Nf3 {[%emt 0:
00:00]} b6 {[%emt 0:00:00]} 7. O-O {[%emt 0:00:00]} Bb7 {[%emt 0:00:00]} 8. d5
{[%emt 0:00:00]} Na6 {[%emt 0:00:00]} 9. Qc2 {[%emt 0:00:00]} Nc5 {[%emt 0:00:
00]} 10. b3 {[%emt 0:00:00]} e6 {[%emt 0:00:00]} 11. dxe6 {[%emt 0:00:00]} Nfe4
{[%emt 0:00:00]} 12. Bb2 {[%emt 0:00:00]} dxe6 {[%emt 0:00:00]} 13. Rad1 {
[%emt 0:00:00]} Qe7 {[%emt 0:00:00]} 14. Nxe4 {[%emt 0:00:00]} Bxe4 {[%emt 0:
00:00]} 15. Qc1 {[%emt 0:00:00]} e5 {[%emt 0:00:00]} 16. Bc3 {[%emt 0:00:00]}
a5 {[%emt 0:00:00]} 17. Qb2 {[%emt 0:00:00]} Rae8 {[%emt 0:00:00]} 18. Rd2 {
[%emt 0:00:00]} Bc6 {[%emt 0:00:00]} 19. Rdd1 {[%emt 0:00:00]} Ne4 {[%emt 0:00:
00]} 20. Be1 {[%emt 0:00:00]} Qc5 {[%emt 0:00:00]} 21. b4 {[%emt 0:00:02]} Qxc4
{[%emt 0:00:00]} 22. bxa5 {[%emt 0:00:01]} bxa5 {[%emt 0:00:08]} 23. Rc1 {
[%emt 0:00:01]} Qb5 {[%emt 0:00:00]} 24. Qxb5 {[%emt 0:00:05]} Bxb5 {[%emt 0:
00:00]} 25. Bxa5 {[%emt 0:00:03]} c5 {[%emt 0:00:00]} 26. Nd2 {[%emt 0:00:01]}
Nxd2 {[%emt 0:00:00]} 27. Bxd2 {[%emt 0:00:02]} e4 {[%emt 0:00:00]} 28. Rxc5 {
[%emt 0:00:05]} Bxe2 {[%emt 0:00:00]} 29. Re1 {[%emt 0:00:04]} Bd3 {[%emt 0:00:
00]} 30. a4 {[%emt 0:00:03]} Rb8 {[%emt 0:00:08]} 31. Bc3 {[%emt 0:00:05]} Bxc3
{[%emt 0:00:26]} 32. Rxc3 {[%emt 0:00:01]} Rb2 {[%emt 0:00:01]} 33. Ra3 {
[%emt 0:00:08]} Rc8 {[%emt 0:00:03]} 34. Bf1 {[%emt 0:00:05]} Rcc2 {[%emt 0:00:
03]} 35. Bxd3 {[%emt 0:00:02]} exd3 {[%emt 0:00:01]} 36. Rxd3 {[%emt 0:00:04]}
Rxf2 {[%emt 0:00:01]} 37. Re7 {[%emt 0:00:05]} Rg2+ {[%emt 0:00:03]} 38. Kf1
Rgd2 {[%emt 0:00:17]} 39. Rxd2 {[%emt 0:00:05]} Rxd2 {[%emt 0:00:01]} 40. a5 {
[%emt 0:00:03]} Ra2 {[%emt 0:00:03]} 41. Ra7 {[%emt 0:00:11]} Rxh2 {[%emt 0:00:
01]} 42. a6 {[%emt 0:00:04]} Ra2 {[%emt 0:00:02]} 43. Kg1 {[%emt 0:00:04]} h5 {
[%emt 0:00:02]} 44. Kf1 {[%emt 0:00:01]} g5 {[%emt 0:00:01]} 45. Kg1 {[%emt 0:
00:06]} g4 {[%emt 0:00:08]} 46. Ra8+ {[%emt 0:00:03]} Kg7 {[%emt 0:00:01]} 47.
a7 {[%emt 0:00:01]} h4 {[%emt 0:00:02]} 48. gxh4 {[%emt 0:00:03]} f4 {[%emt 0:
00:03]} 49. Rb8 {[%emt 0:00:02]} Rxa7 {[%emt 0:00:01]} 50. Rb4 {[%emt 0:00:00]}
Rf7 {[%emt 0:00:01]} 51. Rb5 {[%emt 0:00:04]} Kh6 {[%emt 0:00:01]} 52. Rg5 {
[%emt 0:00:01]} Rg7 {[%emt 0:00:00]} 53. Rf5 {[%emt 0:00:01]} f3 {[%emt 0:00:
03]} 54. Kf2 {[%emt 0:00:06]} Kg6 {[%emt 0:00:11]} 55. Rd5 {[%emt 0:00:03]} Kf6
{[%emt 0:00:02]} 56. Kg3 {[%emt 0:00:00]} Ke6 {[%emt 0:00:01]} 57. Ra5 {
[%emt 0:00:01]} Rf7 {[%emt 0:00:01]} 58. Ra2 {[%emt 0:00:01]} Ke5 {[%emt 0:00:
01]} 59. h5 {[%emt 0:00:02]} Ke4 {[%emt 0:00:02]} 60. Ra4+ Ke3 {[%emt 0:00:01]}
61. Ra3+ {[%emt 0:00:02]} Kd4 {[%emt 0:00:02]} 62. Ra4+ {[%emt 0:00:01]} Kd3 {
[%emt 0:00:00]} 63. Ra3+ {[%emt 0:00:01]} Kc2 {[%emt 0:00:01]} 64. Ra2+ {
[%emt 0:00:01]} Kc1 {[%emt 0:00:02]} 65. Ra1+ {[%emt 0:00:00]} Kd2 {[%emt 0:00:
01]} 66. Ra2+ {[%emt 0:00:01]} Kc3 {[%emt 0:00:00]} 67. Rh2 {[%emt 0:00:03]}
Kd3 {[%emt 0:00:02]} 68. h6 {[%emt 0:00:01]} Rh7 {[%emt 0:00:12]} 69. Kxg4 {
[%emt 0:00:01]} Ke3 {[%emt 0:00:01]} 70. Rh3 {[%emt 0:00:01]} Ke2 {[%emt 0:00:
01]} 71. Rxf3 {[%emt 0:00:01]} Rxh6 {[%emt 0:00:01]} 1/2-1/2

[Event "Grandmaster Tournament Blitz"]
[Site "Biel/Bienne, Switzerland"]
[Date "2019.07.27"]
[Round "2.1"]
[White "Shankland, Sam"]
[Black "Maghsoodloo, Parham"]
[Result "1/2-1/2"]
[ECO "B01"]
[WhiteElo "2660"]
[BlackElo "2719"]
[PlyCount "123"]
[EventDate "2019.??.??"]
[EventType "blitz"]
[TimeControl "3+2"]
[WhiteClock "0:00:21"]
[BlackClock "0:00:09"]

1. e4 {[%emt 0:00:00]} d5 {[%emt 0:00:00]} 2. exd5 {[%emt 0:00:00]} Qxd5 {
[%emt 0:00:00]} 3. Nc3 {[%emt 0:00:00]} Qd8 {[%emt 0:00:00]} 4. d4 {[%emt 0:00:
00]} g6 {[%emt 0:00:00]} 5. Bc4 {[%emt 0:00:00]} Bg7 {[%emt 0:00:00]} 6. Nf3 {
[%emt 0:00:00]} Nf6 {[%emt 0:00:00]} 7. O-O {[%emt 0:00:00]} O-O {[%emt 0:00:
00]} 8. Re1 {[%emt 0:00:00]} a6 {[%emt 0:00:00]} 9. a4 {[%emt 0:00:00]} Nc6 {
[%emt 0:00:00]} 10. d5 {[%emt 0:00:00]} Nb4 {[%emt 0:00:00]} 11. Bg5 {[%emt 0:
00:00]} h6 {[%emt 0:00:00]} 12. Bh4 {[%emt 0:00:00]} c6 {[%emt 0:00:00]} 13.
dxc6 {[%emt 0:00:00]} Nxc6 {[%emt 0:00:00]} 14. Qe2 {[%emt 0:00:00]} Qb6 {
[%emt 0:00:00]} 15. Bb3 {[%emt 0:00:00]} Bg4 {[%emt 0:00:00]} 16. Bxf6 {
[%emt 0:00:00]} exf6 {[%emt 0:00:00]} 17. Nd5 {[%emt 0:00:00]} Qc5 {[%emt 0:00:
00]} 18. Rad1 {[%emt 0:00:00]} f5 {[%emt 0:00:00]} 19. c3 {[%emt 0:00:00]} Ne5
{[%emt 0:00:00]} 20. Qe3 {[%emt 0:00:00]} Qxe3 {[%emt 0:00:00]} 21. Rxe3 {
[%emt 0:00:00]} Bxf3 {[%emt 0:00:00]} 22. gxf3 {[%emt 0:00:00]} b5 {[%emt 0:00:
00]} 23. axb5 {[%emt 0:00:00]} axb5 {[%emt 0:00:00]} 24. f4 {[%emt 0:00:00]}
Nc4 {[%emt 0:00:00]} 25. Bxc4 {[%emt 0:00:00]} bxc4 {[%emt 0:00:00]} 26. Nb6 {
[%emt 0:00:00]} Rab8 {[%emt 0:00:00]} 27. Nxc4 {[%emt 0:00:00]} Rfc8 {[%emt 0:
00:00]} 28. Nd6 {[%emt 0:00:09]} Rd8 {[%emt 0:00:16]} 29. c4 {[%emt 0:00:10]}
Rxb2 {[%emt 0:00:04]} 30. c5 {[%emt 0:00:01]} Rc2 {[%emt 0:00:01]} 31. Rd5 {
[%emt 0:00:01]} Bf8 {[%emt 0:00:22]} 32. Rb3 {[%emt 0:00:20]} Ra8 {[%emt 0:00:
15]} 33. Rb7 {[%emt 0:00:10]} Raa2 {[%emt 0:00:07]} 34. Nxf7 {[%emt 0:00:07]}
Rxf2 {[%emt 0:00:06]} 35. Nxh6+ {[%emt 0:00:14]} Bxh6 {[%emt 0:00:02]} 36. Rd8+
{[%emt 0:00:01]} Bf8 37. Rbb8 {[%emt 0:00:01]} Rg2+ {[%emt 0:00:05]} 38. Kf1 {
[%emt 0:00:00]} Rxh2 {[%emt 0:00:02]} 39. Rxf8+ {[%emt 0:00:01]} Kg7 {[%emt 0:
00:00]} 40. Rg8+ {[%emt 0:00:01]} Kf7 {[%emt 0:00:01]} 41. Rgf8+ {[%emt 0:00:
02]} Ke6 {[%emt 0:00:01]} 42. Kg1 {[%emt 0:00:01]} Rhg2+ {[%emt 0:00:03]} 43.
Kf1 {[%emt 0:00:01]} Rgc2 {[%emt 0:00:01]} 44. Rfe8+ {[%emt 0:00:02]} Kd5 {
[%emt 0:00:01]} 45. Rbd8+ {[%emt 0:00:02]} Kc4 46. c6 {[%emt 0:00:02]} Kb5 {
[%emt 0:00:08]} 47. Rb8+ {[%emt 0:00:01]} Kxc6 {[%emt 0:00:01]} 48. Rbc8+ {
[%emt 0:00:01]} Kd5 {[%emt 0:00:02]} 49. Rcd8+ {[%emt 0:00:04]} Kc6 {[%emt 0:
00:02]} 50. Rc8+ {[%emt 0:00:01]} Kd7 {[%emt 0:00:01]} 51. Rcd8+ {[%emt 0:00:
01]} Kc7 {[%emt 0:00:01]} 52. Rc8+ {[%emt 0:00:01]} Kd6 {[%emt 0:00:01]} 53.
Rcd8+ Kc5 54. Rc8+ {[%emt 0:00:01]} Kd4 {[%emt 0:00:01]} 55. Rcd8+ {[%emt 0:00:
01]} Kc3 {[%emt 0:00:00]} 56. Rc8+ {[%emt 0:00:01]} Kd2 {[%emt 0:00:02]} 57.
Rxc2+ {[%emt 0:00:08]} Rxc2 {[%emt 0:00:01]} 58. Re6 {[%emt 0:00:01]} Kd3 {
[%emt 0:00:07]} 59. Rxg6 {[%emt 0:00:02]} Ke3 {[%emt 0:00:00]} 60. Rg3+ {
[%emt 0:00:01]} Kxf4 {[%emt 0:00:06]} 61. Ra3 {[%emt 0:00:00]} Kg4 {[%emt 0:00:
01]} 62. Rb3 {[%emt 0:00:01]} 1/2-1/2

[Event "Grandmaster Tournament Blitz"]
[Site "Biel/Bienne, Switzerland"]
[Date "2019.07.27"]
[Round "2.2"]
[White "Vidit, Santosh Gujrathi"]
[Black "Abdusattorov, Nodirbek"]
[Result "1/2-1/2"]
[ECO "D41"]
[WhiteElo "2694"]
[BlackElo "2550"]
[PlyCount "116"]
[EventDate "2019.??.??"]
[EventType "blitz"]
[TimeControl "3+2"]
[WhiteClock "0:00:07"]
[BlackClock "0:00:06"]

1. Nf3 {[%emt 0:00:00]} Nf6 {[%emt 0:00:00]} 2. c4 {[%emt 0:00:00]} c5 {
[%emt 0:00:00]} 3. Nc3 {[%emt 0:00:00]} d5 {[%emt 0:00:00]} 4. cxd5 {[%emt 0:
00:00]} Nxd5 {[%emt 0:00:00]} 5. d4 {[%emt 0:00:00]} Nxc3 {[%emt 0:00:00]} 6.
bxc3 {[%emt 0:00:00]} e6 {[%emt 0:00:00]} 7. e4 {[%emt 0:00:00]} cxd4 {[%emt 0:
00:00]} 8. cxd4 {[%emt 0:00:00]} Bb4+ {[%emt 0:00:00]} 9. Bd2 {[%emt 0:00:00]}
Bxd2+ 10. Qxd2 {[%emt 0:00:00]} O-O {[%emt 0:00:00]} 11. Bc4 {[%emt 0:00:00]}
Nd7 {[%emt 0:00:00]} 12. O-O {[%emt 0:00:00]} Nf6 {[%emt 0:00:00]} 13. Rfe1 {
[%emt 0:00:00]} b6 {[%emt 0:00:00]} 14. Rad1 {[%emt 0:00:00]} Bb7 {[%emt 0:00:
00]} 15. Bd3 {[%emt 0:00:00]} Rc8 {[%emt 0:00:00]} 16. d5 {[%emt 0:00:00]} exd5
{[%emt 0:00:00]} 17. e5 {[%emt 0:00:00]} Ne4 {[%emt 0:00:00]} 18. Qf4 {[%emt 0:
00:00]} Qe7 {[%emt 0:00:00]} 19. Nd4 {[%emt 0:00:00]} g6 {[%emt 0:00:00]} 20.
h4 {[%emt 0:00:00]} Rfe8 {[%emt 0:00:00]} 21. f3 {[%emt 0:00:00]} Nc5 {[%emt 0:
00:00]} 22. Qg3 {[%emt 0:00:00]} Nxd3 {[%emt 0:00:00]} 23. Rxd3 {[%emt 0:00:00]
} Rc4 {[%emt 0:00:00]} 24. Nf5 {[%emt 0:00:00]} Qc5+ {[%emt 0:00:00]} 25. Kh2 {
[%emt 0:00:00]} Rc3 {[%emt 0:00:00]} 26. Rxc3 {[%emt 0:00:01]} Qxc3 {[%emt 0:
00:00]} 27. Re3 {[%emt 0:00:12]} Qc5 {[%emt 0:00:00]} 28. Nh6+ {[%emt 0:00:08]}
Kg7 {[%emt 0:00:02]} 29. Qf4 {[%emt 0:00:05]} Qe7 {[%emt 0:00:05]} 30. Kg3 {
[%emt 0:00:09]} Bc8 {[%emt 0:00:02]} 31. Rc3 {[%emt 0:00:06]} Be6 {[%emt 0:00:
00]} 32. Rc6 {[%emt 0:00:04]} Rd8 {[%emt 0:00:09]} 33. Rd6 {[%emt 0:00:13]}
Rxd6 {[%emt 0:00:10]} 34. exd6 {[%emt 0:00:01]} Qf6 {[%emt 0:00:02]} 35. Qxf6+
{[%emt 0:00:04]} Kxf6 {[%emt 0:00:02]} 36. Kf4 {[%emt 0:00:04]} Bd7 {[%emt 0:
00:01]} 37. Ke3 {[%emt 0:00:04]} Ke6 {[%emt 0:00:06]} 38. Kd4 {[%emt 0:00:02]}
f5 {[%emt 0:00:04]} 39. g4 {[%emt 0:00:04]} fxg4 {[%emt 0:00:06]} 40. Nxg4 {
[%emt 0:00:01]} Kxd6 {[%emt 0:00:01]} 41. Nf6 {[%emt 0:00:01]} h6 {[%emt 0:00:
09]} 42. Nxd5 {[%emt 0:00:02]} Bc6 {[%emt 0:00:04]} 43. Nf4 {[%emt 0:00:02]}
Bxf3 {[%emt 0:00:02]} 44. Nxg6 {[%emt 0:00:02]} a5 {[%emt 0:00:06]} 45. Ne5 {
[%emt 0:00:03]} Bd5 {[%emt 0:00:01]} 46. a3 {[%emt 0:00:03]} h5 {[%emt 0:00:01]
} 47. Nd3 {[%emt 0:00:02]} Bf7 {[%emt 0:00:05]} 48. Ne5 {[%emt 0:00:01]} Be6 {
[%emt 0:00:03]} 49. Nd3 {[%emt 0:00:03]} b5 {[%emt 0:00:01]} 50. Nf4 {[%emt 0:
00:03]} Bf7 {[%emt 0:00:01]} 51. Nd3 {[%emt 0:00:01]} Ke6 {[%emt 0:00:15]} 52.
Kc5 {[%emt 0:00:04]} Be8 {[%emt 0:00:03]} 53. Nf4+ {[%emt 0:00:02]} Ke5 {
[%emt 0:00:05]} 54. Nxh5 {[%emt 0:00:04]} b4 {[%emt 0:00:03]} 55. axb4 {
[%emt 0:00:02]} a4 56. Kc4 {[%emt 0:00:03]} Bxh5 {[%emt 0:00:04]} 57. Kc3 a3 {
[%emt 0:00:04]} 58. Kb3 {[%emt 0:00:01]} Kd5 {[%emt 0:00:01]} 1/2-1/2

[Event "Grandmaster Tournament Blitz"]
[Site "Biel/Bienne, Switzerland"]
[Date "2019.07.27"]
[Round "2.4"]
[White "Bogner, Sebastian"]
[Black "Cori, Jorge"]
[Result "0-1"]
[ECO "C10"]
[WhiteElo "2584"]
[BlackElo "2558"]
[PlyCount "64"]
[EventDate "2019.??.??"]
[EventType "blitz"]
[TimeControl "3+2"]
[WhiteClock "0:00:10"]
[BlackClock "0:00:27"]

1. e4 {[%emt 0:00:00]} e6 {[%emt 0:00:00]} 2. d4 {[%emt 0:00:00]} d5 {[%emt 0:
00:00]} 3. Nd2 {[%emt 0:00:00]} dxe4 {[%emt 0:00:00]} 4. Nxe4 {[%emt 0:00:00]}
Nd7 {[%emt 0:00:00]} 5. Nf3 {[%emt 0:00:00]} Ngf6 {[%emt 0:00:00]} 6. Nxf6+ {
[%emt 0:00:00]} Nxf6 {[%emt 0:00:00]} 7. Be3 {[%emt 0:00:00]} Bd6 {[%emt 0:00:
00]} 8. Bd3 {[%emt 0:00:00]} b6 {[%emt 0:00:00]} 9. Qe2 {[%emt 0:00:00]} Bb7 {
[%emt 0:00:00]} 10. O-O-O {[%emt 0:00:00]} Nd5 {[%emt 0:00:00]} 11. Bd2 {
[%emt 0:00:00]} Nf4 {[%emt 0:00:00]} 12. Bxf4 {[%emt 0:00:00]} Bxf4+ {[%emt 0:
00:00]} 13. Kb1 {[%emt 0:00:00]} Qe7 {[%emt 0:00:00]} 14. Be4 {[%emt 0:00:00]}
c6 {[%emt 0:00:00]} 15. Ne5 {[%emt 0:00:00]} Rc8 {[%emt 0:00:00]} 16. Qf3 {
[%emt 0:00:00]} Bxe5 {[%emt 0:00:00]} 17. dxe5 {[%emt 0:00:00]} O-O {[%emt 0:
00:00]} 18. Rd6 {[%emt 0:00:00]} f5 {[%emt 0:00:00]} 19. Bd3 {[%emt 0:00:00]}
c5 {[%emt 0:00:00]} 20. Qg3 {[%emt 0:00:00]} c4 {[%emt 0:00:00]} 21. Be2 {
[%emt 0:00:00]} f4 {[%emt 0:00:00]} 22. Qh3 {[%emt 0:00:00]} Rc5 {[%emt 0:00:
00]} 23. Rxe6 {[%emt 0:00:00]} Qg5 {[%emt 0:00:00]} 24. Bf3 {[%emt 0:00:01]}
Bc8 {[%emt 0:00:00]} 25. Bg4 {[%emt 0:00:07]} Bxe6 {[%emt 0:00:02]} 26. Bxe6+ {
[%emt 0:00:01]} Kh8 {[%emt 0:00:01]} 27. Rd1 {[%emt 0:00:07]} Qxe5 {[%emt 0:00:
09]} 28. a4 {[%emt 0:00:14]} c3 {[%emt 0:00:01]} 29. b3 {[%emt 0:00:07]} b5 {
[%emt 0:00:04]} 30. axb5 {[%emt 0:00:07]} f3 {[%emt 0:00:20]} 31. gxf3 {
[%emt 0:00:10]} Qe2 {[%emt 0:00:06]} 32. Qf1 {[%emt 0:00:08]} Qxe6 {[%emt 0:00:
02]} 0-1

[Event "Grandmaster Tournament Blitz"]
[Site "Biel/Bienne, Switzerland"]
[Date "2019.07.27"]
[Round "3.1"]
[White "Cori, Jorge"]
[Black "Shankland, Sam"]
[Result "0-1"]
[ECO "D12"]
[WhiteElo "2558"]
[BlackElo "2660"]
[PlyCount "82"]
[EventDate "2019.??.??"]
[EventType "blitz"]
[TimeControl "3+2"]
[WhiteClock "0:00:16"]
[BlackClock "0:00:13"]

1. d4 {[%emt 0:00:00]} d5 {[%emt 0:00:00]} 2. Nf3 {[%emt 0:00:00]} Nf6 3. c4 {
[%emt 0:00:01]} c6 {[%emt 0:00:00]} 4. e3 {[%emt 0:00:00]} Bf5 {[%emt 0:00:00]}
5. Nc3 {[%emt 0:00:00]} e6 {[%emt 0:00:00]} 6. Nh4 {[%emt 0:00:00]} Be4 {
[%emt 0:00:00]} 7. Qb3 {[%emt 0:00:00]} Qc7 {[%emt 0:00:00]} 8. Bd2 {[%emt 0:
00:00]} Be7 {[%emt 0:00:00]} 9. Rc1 {[%emt 0:00:00]} O-O {[%emt 0:00:00]} 10.
cxd5 {[%emt 0:00:00]} Bxd5 {[%emt 0:00:00]} 11. Nxd5 {[%emt 0:00:00]} exd5 {
[%emt 0:00:00]} 12. Nf5 {[%emt 0:00:00]} Re8 {[%emt 0:00:00]} 13. Nxe7+ {
[%emt 0:00:00]} Qxe7 {[%emt 0:00:00]} 14. Bd3 {[%emt 0:00:00]} Ne4 {[%emt 0:00:
00]} 15. Bb4 {[%emt 0:00:00]} Qg5 {[%emt 0:00:00]} 16. Bxe4 {[%emt 0:00:00]}
Rxe4 {[%emt 0:00:00]} 17. Bd6 {[%emt 0:00:00]} Nd7 {[%emt 0:00:00]} 18. O-O {
[%emt 0:00:13]} Nb6 {[%emt 0:00:00]} 19. Bc7 {[%emt 0:00:07]} Qe7 {[%emt 0:00:
00]} 20. Bxb6 {[%emt 0:00:02]} axb6 {[%emt 0:00:00]} 21. Qxb6 {[%emt 0:00:03]}
Rxa2 {[%emt 0:00:00]} 22. Ra1 {[%emt 0:00:00]} Rxa1 {[%emt 0:00:00]} 23. Rxa1 {
[%emt 0:00:01]} g6 {[%emt 0:00:00]} 24. g3 {[%emt 0:00:06]} h5 {[%emt 0:00:00]}
25. Ra7 {[%emt 0:00:06]} Rxe3 {[%emt 0:00:00]} 26. fxe3 {[%emt 0:00:03]} Qxe3+
{[%emt 0:00:00]} 27. Kf1 {[%emt 0:00:00]} Qf3+ {[%emt 0:00:33]} 28. Ke1 Qh1+ {
[%emt 0:00:01]} 29. Kd2 {[%emt 0:00:01]} Qxh2+ {[%emt 0:00:01]} 30. Kc3 {
[%emt 0:00:00]} Qxg3+ {[%emt 0:00:01]} 31. Kb4 {[%emt 0:00:02]} Qe1+ {[%emt 0:
00:02]} 32. Ka3 {[%emt 0:00:03]} h4 {[%emt 0:00:09]} 33. Qd8+ {[%emt 0:00:06]}
Kg7 {[%emt 0:00:02]} 34. Ra8 {[%emt 0:00:01]} Kh6 {[%emt 0:00:13]} 35. Qf6 {
[%emt 0:00:04]} Qa1+ {[%emt 0:00:02]} 36. Kb4 {[%emt 0:00:03]} Qxa8 {[%emt 0:
00:01]} 37. Qxh4+ {[%emt 0:00:05]} Kg7 {[%emt 0:00:01]} 38. Kc5 {[%emt 0:00:00]
} Qa5+ {[%emt 0:00:07]} 39. Kd6 {[%emt 0:00:01]} Qb4+ {[%emt 0:00:00]} 40. Kd7
{[%emt 0:00:01]} Qxb2 {[%emt 0:00:02]} 41. Qf4 {[%emt 0:00:05]} Qe2 {[%emt 0:
00:08]} 0-1

[Event "Grandmaster Tournament Blitz"]
[Site "Biel/Bienne, Switzerland"]
[Date "2019.07.27"]
[Round "3.2"]
[White "Georgiadis, Nico"]
[Black "Bogner, Sebastian"]
[Result "0-1"]
[ECO "E60"]
[WhiteElo "2464"]
[BlackElo "2584"]
[PlyCount "60"]
[EventDate "2019.??.??"]
[EventType "blitz"]
[TimeControl "3+2"]
[WhiteClock "0:00:07"]
[BlackClock "0:01:28"]

1. Nf3 {[%emt 0:00:00]} Nf6 {[%emt 0:00:00]} 2. b3 {[%emt 0:00:00]} g6 3. Bb2 {
[%emt 0:00:01]} Bg7 {[%emt 0:00:00]} 4. g3 {[%emt 0:00:00]} O-O {[%emt 0:00:00]
} 5. Bg2 {[%emt 0:00:00]} c5 {[%emt 0:00:00]} 6. c4 {[%emt 0:00:00]} Nc6 {
[%emt 0:00:00]} 7. O-O {[%emt 0:00:00]} d6 {[%emt 0:00:00]} 8. d4 {[%emt 0:00:
00]} Bf5 {[%emt 0:00:00]} 9. d5 {[%emt 0:00:00]} Na5 {[%emt 0:00:00]} 10. Nbd2
{[%emt 0:00:00]} a6 {[%emt 0:00:00]} 11. Nh4 {[%emt 0:00:00]} Bd7 {[%emt 0:00:
00]} 12. Qc2 {[%emt 0:00:00]} b5 {[%emt 0:00:00]} 13. e4 {[%emt 0:00:00]} Rb8 {
[%emt 0:00:00]} 14. Rab1 {[%emt 0:00:00]} e5 {[%emt 0:00:00]} 15. a3 {[%emt 0:
00:00]} Qc7 {[%emt 0:00:00]} 16. Bc3 {[%emt 0:00:00]} b4 {[%emt 0:00:00]} 17.
axb4 {[%emt 0:00:00]} cxb4 {[%emt 0:00:00]} 18. Bb2 {[%emt 0:00:00]} Nb7 {
[%emt 0:00:00]} 19. f4 {[%emt 0:00:00]} Ng4 {[%emt 0:00:00]} 20. fxe5 {[%emt 0:
00:17]} dxe5 {[%emt 0:00:00]} 21. Qd3 {[%emt 0:00:10]} Qc5+ {[%emt 0:00:00]}
22. Kh1 {[%emt 0:00:01]} Nf2+ {[%emt 0:00:00]} 23. Rxf2 {[%emt 0:00:01]} Qxf2 {
[%emt 0:00:00]} 24. Rf1 {[%emt 0:00:02]} Qb6 {[%emt 0:00:00]} 25. Nhf3 {
[%emt 0:00:04]} Nc5 {[%emt 0:00:00]} 26. Qc2 {[%emt 0:00:02]} Qd6 {[%emt 0:00:
00]} 27. Re1 {[%emt 0:00:12]} a5 {[%emt 0:00:00]} 28. Nf1 {[%emt 0:00:09]} a4 {
[%emt 0:00:00]} 29. bxa4 {[%emt 0:00:01]} Nxa4 {[%emt 0:00:00]} 30. Ba1 {
[%emt 0:00:01]} b3 {[%emt 0:00:00]} 0-1